bitfinex/quotes_SOLUSD_20250414
["timestamp","ask_amount","ask_price","bid_price","bid_amount"]
[1744615474773,70.22905985,131.89,131.88,0.063]
[1744615474929,45.03798628,131.87,131.86,0.063]
[1744615475131,63.68763514,131.87,131.86,0.063]
[1744615476151,0.14216157,131.85,131.84,0.063]
[1744615476327,37.68763514,131.85,131.84,0.063]
[1744615476528,19.03798628,131.85,131.84,0.063]
[1744615477957,32.21056157,131.83,131.82,0.063]
[1744615478159,51.10638628,131.83,131.82,0.063]
[1744615478457,70.04035828,131.83,131.82,0.063]
[1744615478655,18.89582471,131.79,131.78,0.063]
[1744615480143,24.96602471,131.79,131.78,0.063]
[1744615484865,19.03798628,131.82,131.78,0.063]
[1744615485049,18.89582471,131.81,131.78,0.063]
[1744615485245,11.82073006,131.8,131.78,0.063]
[1744615486157,11.82073006,131.79,131.78,0.063]
[1744615486373,11.96289163,131.79,131.78,0.063]
[1744615487574,18.03309163,131.79,131.78,0.063]
[1744615490868,36.68274049,131.79,131.78,0.063]
[1744615493092,36.96706363,131.79,131.78,0.063]
[1744615493381,0.14216157,131.75,131.74,0.063]
[1744615493672,30.61254049,131.75,131.74,0.063]
[1744615493843,38.01254049,131.75,131.74,0.063]
[1744615494669,44.08464049,131.75,131.74,0.063]
[1744615495572,44.36896363,131.75,131.74,0.063]
[1744615495877,44.64964886,131.73,131.72,0.063]
[1744615496060,56.47037892,131.73,131.72,0.063]
[1744615496759,62.54337892,131.73,131.72,0.063]
[1744615497160,62.96986363,131.73,131.72,0.063]
[1744615498980,11.82073006,131.65,131.64,0.063]
[1744615499170,18.95450685,131.66,131.64,0.063]
[1744615499870,18.95450685,131.65,131.64,0.063]
[1744615501364,25.03120685,131.65,131.64,0.063]
[1744615501562,70.17752413,131.65,131.64,0.063]
[1744615501897,70.46184727,131.65,131.64,0.063]
[1744615502353,26.0,131.67,131.64,0.063]
[1744615502554,44.95450685,131.67,131.64,0.063]
[1744615503277,18.95450685,131.66,131.64,0.063]
[1744615503484,18.95450685,131.65,131.64,0.063]
[1744615503778,44.95450685,131.67,131.64,0.063]
[1744615503971,18.95450685,131.7,131.65,18.95450685]
[1744615504173,18.95450685,131.71,131.66,18.95450685]
[1744615504768,13.61576157,131.72,131.66,18.95450685]
[1744615504769,7.4,131.72,131.66,18.95450685]
[1744615505074,7.4,131.72,131.65,82.6]
[1744615505075,25.02750685,131.73,131.68,18.95450685]
[1744615505380,18.95450685,131.74,131.68,6.075]
[1744615505559,18.95450685,131.74,131.69,18.95450685]
[1744615505762,18.95450685,131.76,131.71,20.53740685]
[1744615505970,18.95450685,131.75,131.71,1.5829]
[1744615506161,18.95450685,131.74,131.71,1.5829]
[1744615506369,18.95450685,131.75,131.71,20.53740685]
[1744615506563,18.95450685,131.76,131.71,20.53740685]
[1744615506961,18.95450685,131.74,131.71,1.5829]
[1744615507358,18.95450685,131.76,131.71,26.61120685]
[1744615507592,18.95450685,131.78,131.73,18.95450685]
[1744615508095,7.4,131.8,131.74,18.95450685]
[1744615508395,7.4,131.84,131.75,18.95450685]
[1744615508560,18.95450685,131.82,131.77,18.95450685]
[1744615509173,18.95450685,131.82,131.78,18.95450685]
[1744615509889,18.95450685,131.82,131.77,25.02520685]
[1744615511295,18.95450685,131.79,131.76,6.4525]
[1744615511484,25.16576842,131.82,131.73,13.8711]
[1744615511485,18.95450685,131.77,131.73,13.8711]
[1744615511666,18.95450685,131.77,131.73,19.944]
[1744615512093,18.95450685,131.78,131.73,38.89850685]
[1744615512500,6.0685,131.83,131.74,38.03064042]
[1744615512671,6.0685,131.83,131.76,18.95450685]
[1744615512870,18.95450685,131.82,131.77,18.95450685]
[1744615513072,18.95450685,131.81,131.76,18.95450685]
[1744615513301,18.95450685,131.8,131.75,18.95450685]
[1744615513472,18.95450685,131.8,131.75,25.02640685]
[1744615513877,18.95450685,131.79,131.74,18.95450685]
[1744615514079,18.95450685,131.77,131.73,96.4711]
[1744615514400,18.95450685,131.77,131.73,102.544]
[1744615514697,18.95450685,131.77,131.73,96.4711]
[1744615514869,18.95450685,131.77,131.73,102.544]
[1744615515304,18.95450685,131.77,131.73,121.49850685]
[1744615516534,18.95450685,131.74,131.69,6.0123]
[1744615516682,18.95450685,131.72,131.69,6.0123]
[1744615517391,18.95450685,131.73,131.69,12.0871]
[1744615517784,18.95450685,131.72,131.69,6.0123]
[1744615518195,18.95450685,131.71,131.69,6.0123]
[1744615519006,26.0,131.77,131.7,18.95450685]
[1744615519192,18.95450685,131.76,131.71,18.95450685]
[1744615520008,18.95450685,131.76,131.71,25.02830685]
[1744615520683,18.95450685,131.75,131.71,6.0738]
[1744615521077,0.14216157,131.78,131.7,82.6]
[1744615521078,18.95450685,131.74,131.7,82.6]
[1744615521394,18.95450685,131.71,131.69,6.0123]
[1744615521592,18.95450685,131.7,131.69,6.0123]
[1744615521902,18.95450685,131.7,131.68,84.1648]
[1744615521903,18.95450685,131.7,131.68,1.5648]
[1744615522101,18.95450685,131.69,131.68,1.5648]
[1744615522405,18.95450685,131.72,131.68,1.5648]
[1744615522917,25.02700685,131.74,131.69,18.95450685]
[1744615523122,18.95450685,131.73,131.69,82.6]
[1744615523803,18.95450685,131.72,131.69,82.6]
[1744615524320,25.02800685,131.72,131.69,82.6]
[1744615524723,18.95450685,131.71,131.69,82.6]
[1744615524925,18.95450685,131.7,131.66,89.1556]
[1744615525102,18.95450685,131.68,131.64,82.663]
[1744615526404,18.95450685,131.69,131.64,107.69450685]
[1744615526604,15.1814,131.74,131.67,18.95450685]
[1744615526807,26.0,131.71,131.67,101.55450685]
[1744615527115,44.95450685,131.71,131.67,82.6]
[1744615527315,18.95450685,131.7,131.67,82.6]
[1744615527618,18.95450685,131.69,131.67,82.6]
[1744615528003,18.95450685,131.7,131.67,82.6]
[1744615528298,25.02900685,131.7,131.67,82.6]
[1744615529421,18.95450685,131.69,131.64,0.063]
[1744615529630,18.95450685,131.66,131.64,0.063]
[1744615530128,18.95450685,131.67,131.64,0.063]
[1744615530703,25.03030685,131.67,131.64,0.063]
[1744615532127,18.95450685,131.68,131.64,19.01750685]
[1744615532827,25.02930685,131.69,131.65,18.95450685]
[1744615533000,32.40900685,131.7,131.65,18.95450685]
[1744615533351,0.14216157,131.72,131.67,18.95450685]
[1744615533352,18.95450685,131.71,131.67,18.95450685]
[1744615533505,25.02810685,131.72,131.67,18.95450685]
[1744615533839,18.95450685,131.71,131.66,18.95450685]
[1744615534140,6.0744,131.7,131.66,18.95450685]
[1744615534432,18.95450685,131.72,131.67,18.95450685]
[1744615535138,18.95450685,131.7,131.66,82.6]
[1744615536331,26.0,131.7,131.66,101.55450685]
[1744615536552,25.02870685,131.71,131.66,107.63050685]
[1744615536737,26.0,131.71,131.68,18.95450685]
[1744615537107,18.95450685,131.75,131.7,18.95450685]
[1744615537337,7.38,131.77,131.72,18.95450685]
[1744615537513,7.38,131.77,131.73,18.95450685]
[1744615538250,26.33450685,131.77,131.72,18.95450685]
[1744615538418,32.40580685,131.77,131.72,18.95450685]
[1744615538612,18.95450685,131.76,131.71,18.95450685]
[1744615539023,32.40580685,131.77,131.72,18.95450685]
[1744615539614,6.0721,131.75,131.71,18.95450685]
[1744615539815,25.02630685,131.76,131.71,18.95450685]
[1744615540014,25.02630685,131.76,131.71,25.02830685]
[1744615540422,6.0718,131.76,131.72,18.95450685]
[1744615540918,7.38,131.77,131.73,18.95450685]
[1744615541242,25.02470685,131.79,131.74,18.95450685]
[1744615541568,18.95450685,131.78,131.73,18.95450685]
[1744615541916,25.02530685,131.78,131.73,25.02740685]
[1744615542230,51.02530685,131.78,131.73,18.95450685]
[1744615542839,18.95450685,131.77,131.72,25.02780685]
[1744615543439,32.0708,131.78,131.72,25.02780685]
[1744615543615,18.95450685,131.77,131.72,25.02780685]
[1744615544542,18.95450685,131.76,131.71,82.6]
[1744615544717,18.95450685,131.73,131.69,1.5508]
[1744615545722,26.33450685,131.76,131.71,18.95450685]
[1744615547041,6.0721,131.75,131.71,18.95450685]
[1744615547539,25.02660685,131.75,131.69,90.2255]
[1744615547842,25.02660685,131.75,131.7,18.95450685]
[1744615548039,13.4516,131.76,131.72,18.95450685]
[1744615548437,25.02580685,131.77,131.72,18.95450685]
[1744615549022,25.02580685,131.77,131.72,25.02760685]
[1744615549339,0.14216157,131.79,131.72,25.02760685]
[1744615549340,6.0709,131.78,131.74,18.95450685]
[1744615549542,0.03,131.83,131.77,18.95450685]
[1744615549755,6.0688,131.82,131.79,18.95450685]
[1744615549922,6.0985,131.83,131.8,18.95450685]
[1744615550123,0.03,131.83,131.81,18.95450685]
[1744615550323,0.03,131.83,131.8,18.95450685]
[1744615551554,0.03,131.83,131.79,18.95450685]
[1744615551743,18.95450685,131.82,131.77,18.95450685]
[1744615552125,44.95450685,131.81,131.76,84.2386]
[1744615552326,44.95450685,131.81,131.76,103.19310685]
[1744615552525,44.95450685,131.81,131.76,109.26470685]
[1744615553351,51.02410685,131.81,131.76,103.19310685]
[1744615554034,51.02410685,131.81,131.76,109.26460685]
[1744615554944,26.0,131.81,131.79,18.95450685]
[1744615555135,51.05290685,131.83,131.78,18.95450685]
[1744615555519,18.95450685,131.82,131.77,25.02550685]
[1744615556153,18.95450685,131.82,131.78,18.95450685]
[1744615557052,51.05290685,131.83,131.78,18.95450685]
[1744615557345,51.05290685,131.83,131.78,25.02520685]
[1744615557847,26.03,131.83,131.79,18.95450685]
[1744615558628,32.0987,131.83,131.79,18.95450685]
[1744615558854,51.05320685,131.83,131.78,25.02520685]
[1744615559649,32.0987,131.83,131.78,25.02520685]
[1744615559863,51.05320685,131.83,131.78,25.02520685]
[1744615560842,18.95450685,131.82,131.76,84.2386]
[1744615561045,18.95450685,131.82,131.77,18.95450685]
[1744615561233,18.95450685,131.8,131.76,82.6]
[1744615561439,18.95450685,131.79,131.76,82.6]
[1744615562033,18.95450685,131.8,131.76,82.6]
[1744615562662,58.43320685,131.83,131.76,88.6715]
[1744615562953,18.95450685,131.81,131.76,101.55450685]
[1744615563252,18.95450685,131.81,131.74,13.6803]
[1744615563253,18.95450685,131.77,131.74,82.6]
[1744615563455,18.95450685,131.76,131.72,88.6732]
[1744615563640,18.95450685,131.77,131.72,107.62770685]
[1744615564248,25.02570685,131.77,131.72,107.62770685]
[1744615564756,26.0,131.78,131.72,107.62770685]
[1744615565057,18.95450685,131.77,131.72,107.62770685]
[1744615566639,18.95450685,131.75,131.72,82.6]
[1744615566855,18.95450685,131.76,131.72,82.6]
[1744615567448,18.95450685,131.76,131.72,88.6734]
[1744615567650,58.40540685,131.78,131.73,18.95450685]
[1744615568253,39.4509,131.78,131.74,18.95450685]
[1744615568440,32.40350685,131.82,131.77,18.95450685]
[1744615568640,18.95450685,131.8,131.74,6.0722]
[1744615568854,13.449,131.82,131.74,101.55450685]
[1744615568855,18.95450685,131.79,131.74,101.55450685]
[1744615569340,44.95450685,131.79,131.74,101.55450685]
[1744615570169,18.95450685,131.78,131.74,82.6]
[1744615570858,25.02550685,131.78,131.74,82.6]
[1744615571845,18.95450685,131.77,131.74,82.6]
[1744615572168,18.95450685,131.75,131.7,108.02460685]
[1744615572365,18.95450685,131.75,131.7,25.42460685]
[1744615572939,6.0725,131.74,131.7,25.42460685]
[1744615573172,6.0725,131.74,131.69,7.5795]
[1744615573173,25.02700685,131.74,131.69,26.53400685]
[1744615573469,6.0725,131.74,131.7,18.95450685]
[1744615575367,25.02680685,131.75,131.7,25.02880685]
[1744615575874,25.02680685,131.75,131.7,18.95450685]
[1744615576879,18.95450685,131.74,131.69,20.45930685]
[1744615577276,18.95450685,131.74,131.69,18.95450685]
[1744615578077,18.95450685,131.73,131.68,107.62960685]
[1744615578273,25.02630685,131.76,131.71,18.95450685]
[1744615579570,25.02630685,131.76,131.71,25.02840685]
[1744615579875,18.95450685,131.76,131.71,25.02840685]
[1744615580375,25.02620685,131.76,131.71,18.95450685]
[1744615580753,6.0717,131.76,131.71,25.02830685]
[1744615580954,6.0717,131.76,131.72,18.95450685]
[1744615581453,26.0,131.77,131.73,25.02750685]
[1744615581765,6.0693,131.81,131.76,18.95450685]
[1744615581946,6.069,131.82,131.79,18.95450685]
[1744615582145,6.069,131.82,131.78,18.95450685]
[1744615582360,6.069,131.82,131.77,18.95450685]
[1744615582550,6.069,131.82,131.78,18.95450685]
[1744615583288,25.05300685,131.83,131.78,18.95450685]
[1744615583478,6.0985,131.83,131.79,18.95450685]
[1744615583798,6.0985,131.83,131.76,101.55450685]
[1744615583799,25.05300685,131.83,131.78,18.95450685]
[1744615584851,6.0985,131.83,131.79,18.95450685]
[1744615585055,0.03,131.83,131.79,18.95450685]
[1744615585274,0.03,131.83,131.8,18.95450685]
[1744615586456,0.03,131.83,131.79,18.95450685]
[1744615586860,0.03,131.83,131.8,18.95450685]
[1744615587373,0.03,131.83,131.82,18.95450685]
[1744615587674,0.03,131.83,131.82,101.55450685]
[1744615587877,0.03,131.83,131.82,101.83882999]
[1744615588251,0.03,131.83,131.82,101.55450685]
[1744615589168,0.03,131.83,131.82,107.62330685]
[1744615589368,0.03,131.83,131.82,107.90762999]
[1744615589568,0.03,131.83,131.82,145.65394727]
[1744615592688,0.03,131.83,131.82,107.90762999]
[1744615593666,0.03,131.83,131.82,126.86213684]
[1744615593985,0.03,131.83,131.82,107.90762999]
[1744615595181,0.03,131.83,131.82,82.6]
[1744615595690,11.83632518,131.83,131.82,82.6]
[1744615595869,11.83632518,131.83,131.78,82.6]
[1744615596073,11.80632518,131.81,131.78,82.6]
[1744615596271,11.80632518,131.8,131.76,82.6]
[1744615597164,18.91640789,131.8,131.76,82.6]
[1744615598305,24.98630789,131.8,131.76,82.6]
[1744615600007,6.0699,131.8,131.76,101.51640789]
[1744615600591,18.91640789,131.8,131.76,82.6]
[1744615600891,18.91640789,131.79,131.76,82.6]
[1744615601187,18.91640789,131.8,131.76,82.6]
[1744615601397,26.0,131.8,131.76,82.6]
[1744615601571,44.91640789,131.8,131.76,82.6]
[1744615602075,18.91640789,131.79,131.76,82.6]
[1744615602478,24.98690789,131.79,131.76,82.6]
[1744615602898,6.0705,131.79,131.76,82.6]
[1744615606395,6.0705,131.79,131.74,18.91640789]
[1744615606396,24.98690789,131.79,131.74,18.91640789]
[1744615606570,18.91640789,131.78,131.73,82.6]
[1744615606779,18.91640789,131.77,131.73,82.6]
[1744615607069,18.91640789,131.76,131.73,82.6]
[1744615607277,44.91640789,131.76,131.73,82.6]
[1744615608577,6.0721,131.75,131.73,82.6]
[1744615608777,6.0721,131.75,131.72,18.91640789]
[1744615609086,50.98820789,131.76,131.72,18.91640789]
[1744615610179,32.0718,131.76,131.72,18.91640789]
[1744615612203,18.91640789,131.74,131.7,101.51640789]
[1744615612407,18.91640789,131.72,131.68,82.6]
[1744615612778,24.99000789,131.72,131.68,82.6]
[1744615613500,18.91640789,131.72,131.68,101.51640789]
[1744615613907,18.91640789,131.73,131.68,101.51640789]
[1744615614401,7.6069,131.78,131.72,18.91640789]
[1744615614581,18.91640789,131.81,131.76,18.91640789]
[1744615614777,26.0,131.78,131.72,82.6]
[1744615614982,18.91640789,131.75,131.7,101.51640789]
[1744615615287,18.91640789,131.72,131.67,18.91640789]
[1744615615676,18.91640789,131.71,131.66,18.91640789]
[1744615615995,18.91640789,131.67,131.64,0.063]
[1744615616179,18.91640789,131.66,131.64,0.063]
[1744615616384,18.91640789,131.65,131.64,0.063]
[1744615616582,44.91640789,131.66,131.64,0.063]
[1744615616994,27.5574,131.69,131.64,18.97940789]
[1744615617195,37.84154989,131.69,131.65,11.84154989]
[1744615617388,11.84154989,131.68,131.64,11.90454989]
[1744615617697,33.80511043,131.72,131.67,11.84154989]
[1744615617698,1.5283,131.72,131.67,11.84154989]
[1744615617993,0.14216157,131.72,131.68,11.84154989]
[1744615618204,11.84154989,131.73,131.68,11.84154989]
[1744615618382,11.84154989,131.74,131.69,11.84154989]
[1744615618580,26.0,131.72,131.69,11.84154989]
[1744615618776,11.84154989,131.74,131.69,11.84154989]
[1744615619190,11.84154989,131.73,131.68,6.0752]
[1744615619388,11.84154989,131.72,131.67,11.84154989]
[1744615619991,11.84154989,131.73,131.68,11.84154989]
[1744615620186,17.91444989,131.74,131.69,11.84154989]
[1744615620508,6.0721,131.75,131.68,17.91684989]
[1744615620682,11.84154989,131.73,131.68,17.91684989]
[1744615621497,37.84154989,131.71,131.66,11.84154989]
[1744615621873,11.84154989,131.7,131.65,12.2727]
[1744615622105,11.84154989,131.7,131.65,24.11424989]
[1744615622397,26.0,131.71,131.67,17.91724989]
[1744615622608,21.6819,131.76,131.69,11.84154989]
[1744615622788,11.84154989,131.75,131.7,11.84154989]
[1744615623189,11.84154989,131.75,131.69,82.6]
[1744615623190,11.84154989,131.74,131.69,94.44154989]
[1744615623389,11.84154989,131.75,131.7,11.84154989]
[1744615623900,17.91364989,131.75,131.7,17.91584989]
[1744615624306,17.91364989,131.75,131.7,11.84154989]
[1744615624605,17.91364989,131.75,131.7,17.91594989]
[1744615624780,19.24154989,131.76,131.71,11.84154989]
[1744615624986,17.91264989,131.78,131.73,11.84154989]
[1744615625308,11.84154989,131.77,131.72,11.84154989]
[1744615626102,17.91274989,131.77,131.72,17.91484989]
[1744615627000,11.84154989,131.77,131.72,17.91484989]
[1744615627203,11.84154989,131.78,131.73,11.84154989]
[1744615628109,9.16196157,131.8,131.75,11.84154989]
[1744615628110,19.26154989,131.8,131.75,11.84154989]
[1744615628604,11.84154989,131.79,131.74,11.84154989]
[1744615628815,11.84154989,131.79,131.74,94.44154989]
[1744615629307,17.91204989,131.79,131.74,94.44154989]
[1744615629504,11.84154989,131.78,131.74,82.6]
[1744615629712,11.84154989,131.77,131.74,82.6]
[1744615630009,11.84154989,131.76,131.74,82.6]
[1744615630309,11.84154989,131.77,131.74,82.6]
[1744615631401,17.91284989,131.77,131.74,82.6]
[1744615634608,7.42,131.8,131.75,11.84154989]
[1744615634812,6.0985,131.83,131.78,11.84154989]
[1744615634995,17.94004989,131.83,131.78,11.84154989]
[1744615636701,17.94004989,131.83,131.77,17.91234989]
[1744615636905,11.84154989,131.8,131.74,82.6]
[1744615637117,11.84154989,131.8,131.75,11.84154989]
[1744615637316,11.98371146,131.81,131.76,11.84154989]
[1744615638434,18.05341146,131.81,131.76,11.84154989]
[1744615638925,11.84154989,131.77,131.73,11.84154989]
[1744615639122,11.84154989,131.77,131.72,108.30294989]
[1744615641129,17.91284989,131.77,131.72,100.51484989]
[1744615641822,11.84154989,131.77,131.73,11.84154989]
[1744615642012,26.0,131.77,131.74,11.84154989]
[1744615642621,26.0,131.77,131.73,11.84154989]
[1744615643305,26.0,131.77,131.73,17.91454989]
[1744615643507,26.0,131.77,131.73,100.51454989]
[1744615647503,11.84154989,131.79,131.74,11.84154989]
[1744615647727,13.47,131.8,131.75,11.84154989]
[1744615647926,25.31154989,131.8,131.75,11.84154989]
[1744615648528,25.31154989,131.8,131.74,11.84154989]
[1744615648722,25.31154989,131.8,131.75,11.84154989]
[1744615648928,17.91154989,131.8,131.75,17.91354989]
[1744615649311,7.38,131.82,131.78,11.84154989]
[1744615649520,0.03,131.83,131.79,11.84154989]
[1744615649723,0.03,131.83,131.8,11.84154989]
[1744615650230,0.03,131.83,131.81,11.84154989]
[1744615650434,0.03,131.83,131.82,11.84154989]
[1744615650610,0.03,131.83,131.82,100.51034989]
[1744615650811,0.03,131.83,131.82,131.42803335]
[1744615651033,0.03,131.83,131.82,133.03473335]
[1744615652530,0.03,131.85,131.84,44.79181043]
[1744615652732,0.03,131.85,131.84,146.61336032]
[1744615653426,0.03,131.85,131.84,146.89768346]
[1744615653726,0.03,131.85,131.84,82.6]
[1744615653929,0.03,131.85,131.82,82.6]
[1744615654324,0.03,131.85,131.82,100.51014989]
[1744615654714,0.03,131.85,131.82,94.44154989]
[1744615654915,0.03,131.85,131.82,100.51034989]
[1744615656420,0.03,131.85,131.83,11.84154989]
[1744615658120,0.03,131.85,131.83,94.44154989]
[1744615658433,0.03,131.85,131.83,100.50974989]
[1744615662133,0.03,131.85,131.84,11.84154989]
[1744615662826,0.03,131.85,131.84,17.90944989]
[1744615663422,0.03,131.85,131.83,100.50974989]
[1744615663819,0.03,131.85,131.84,11.84154989]
[1744615664024,0.03,131.85,131.84,12.12587303]
[1744615664226,0.03,131.85,131.84,30.91768346]
[1744615665034,0.03,131.88,131.86,0.28432314]
[1744615665235,0.03,131.88,131.87,12.12587303]
[1744615668327,0.03,131.88,131.87,18.19237303]
[1744615668522,0.03,131.88,131.86,88.6668]
[1744615668842,0.03,131.88,131.87,11.84154989]
[1744615669846,0.03,131.88,131.87,119.58418346]
[1744615670022,0.03,131.88,131.87,131.42573335]
[1744615670925,0.03,131.89,131.88,18.79181043]
[1744615671228,0.03,131.89,131.88,11.84154989]
[1744615671229,0.0001,131.89,131.88,11.84154989]
[1744615671646,0.0001,131.89,131.88,17.90764989]
[1744615672043,0.0001,131.89,131.88,94.44154989]
[1744615672350,0.0001,131.89,131.88,100.50764989]
[1744615673352,0.0001,131.89,131.88,94.44154989]
[1744615673550,0.0001,131.89,131.88,82.6]
[1744615674325,0.0001,131.89,131.88,100.50764989]
[1744615674847,0.0001,131.89,131.88,94.44154989]
[1744615675450,0.0001,131.89,131.88,82.6]
[1744615679459,11.84164989,131.89,131.85,82.6]
[1744615679754,26.0001,131.89,131.83,82.6]
[1744615679958,11.84154989,131.87,131.83,82.6]
[1744615680347,11.84154989,131.88,131.83,94.44154989]
[1744615680555,43.90734989,131.89,131.84,11.84154989]
[1744615681149,11.84154989,131.88,131.84,11.84154989]
[1744615682070,11.84154989,131.87,131.83,82.6]
[1744615682243,11.84154989,131.85,131.83,82.6]
[1744615682566,11.84154989,131.85,131.8,88.6696]
[1744615682747,11.84154989,131.86,131.81,11.84154989]
[1744615683564,17.90854989,131.86,131.81,17.91064989]
[1744615684038,17.90854989,131.86,131.81,11.84154989]
[1744615684669,11.84154989,131.85,131.8,88.6696]
[1744615684958,11.84154989,131.83,131.8,82.6]
[1744615685333,11.84154989,131.85,131.81,11.84154989]
[1744615685554,17.90854989,131.86,131.81,11.84154989]
[1744615685955,11.84154989,131.85,131.8,94.44154989]
[1744615686135,11.84154989,131.84,131.8,82.6]
[1744615687032,17.90954989,131.84,131.8,82.6]
[1744615688468,11.84154989,131.84,131.8,82.6]
[1744615688637,11.84154989,131.84,131.8,88.6697]
[1744615689149,11.84154989,131.84,131.8,100.51124989]
[1744615689571,11.84154989,131.84,131.8,82.6]
[1744615689572,11.84154989,131.83,131.8,82.6]
[1744615689942,17.90954989,131.84,131.8,82.6]
[1744615690465,11.84154989,131.84,131.8,88.6696]
[1744615690677,17.90904989,131.85,131.8,100.51114989]
[1744615691340,11.84154989,131.84,131.8,88.6696]
[1744615691769,17.90904989,131.85,131.8,100.51114989]
[1744615692674,11.98371146,131.88,131.8,100.51114989]
[1744615692675,17.90774989,131.88,131.83,11.84154989]
[1744615692967,0.0001,131.89,131.86,11.84154989]
[1744615693172,0.0001,131.89,131.86,94.44154989]
[1744615694840,0.0001,131.89,131.86,82.6]
[1744615695567,0.0001,131.89,131.86,88.667]
[1744615695870,0.0001,131.89,131.86,100.50854989]
[1744615697142,0.0001,131.89,131.88,11.84154989]
[1744615697475,0.0001,131.89,131.88,125.35923335]
[1744615698551,0.0001,131.89,131.88,131.42533335]
[1744615699473,0.0001,131.89,131.88,119.58378346]
[1744615699678,0.0001,131.89,131.88,100.79197303]
[1744615701363,0.0001,131.89,131.88,131.42533335]
[1744615702168,0.0001,131.89,131.88,119.58378346]
[1744615702546,0.0001,131.89,131.88,131.42533335]
[1744615705086,0.03,131.91,131.9,18.79181043]
[1744615705286,0.03,131.91,131.9,113.51758346]
[1744615707191,0.03,131.91,131.9,119.58278346]
[1744615707853,0.03,131.93,131.91,82.5699]
[1744615708058,0.03,131.93,131.92,30.91768346]
[1744615708286,0.03,131.93,131.92,113.48758346]
[1744615708490,0.03,131.94,131.93,0.28432314]
[1744615708792,0.03,131.95,131.93,125.32913335]
[1744615709082,0.03,131.95,131.94,23.96742292]
[1744615709293,0.03,131.95,131.94,112.60062292]
[1744615709861,0.0001,131.95,131.94,131.39243335]
[1744615711783,0.0001,131.95,131.94,82.5699]
[1744615711985,11.84164989,131.95,131.91,82.5699]
[1744615712308,11.84154989,131.92,131.86,11.84154989]
[1744615712511,11.84154989,131.9,131.86,11.84154989]
[1744615712810,11.84154989,131.91,131.86,11.84154989]
[1744615713310,11.84154989,131.91,131.86,17.90834989]
[1744615713611,17.90634989,131.91,131.86,11.84154989]
[1744615713783,11.84154989,131.89,131.84,94.41144989]
[1744615713978,11.84154989,131.9,131.86,11.84154989]
[1744615714390,11.84154989,131.91,131.86,11.84154989]
[1744615714798,11.84154989,131.92,131.87,11.84154989]
[1744615715405,14.9596,131.93,131.87,24.94737839]
[1744615715596,18.88117839,131.92,131.87,24.94737839]
[1744615716604,18.88117839,131.91,131.87,6.0662]
[1744615716791,24.94597839,131.91,131.86,24.94797839]
[1744615716993,18.88117839,131.9,131.85,18.88117839]
[1744615717906,18.88117839,131.89,131.84,101.45107839]
[1744615718110,18.88117839,131.89,131.84,18.88117839]
[1744615719006,18.88117839,131.89,131.84,107.51877839]
[1744615719202,24.94687839,131.89,131.84,107.51877839]
[1744615719905,6.0647,131.91,131.85,18.88117839]
[1744615720077,18.88117839,131.9,131.85,18.88117839]
[1744615720277,6.0647,131.91,131.85,18.88117839]
[1744615720278,18.88117839,131.89,131.85,18.88117839]
[1744615720477,18.88117839,131.89,131.84,107.51877839]
[1744615720675,18.88117839,131.89,131.85,18.88117839]
[1744615721734,24.94697839,131.89,131.85,18.88117839]
[1744615721890,24.94697839,131.89,131.84,107.51877839]
[1744615723789,24.94647839,131.9,131.85,18.88117839]
[1744615724486,24.94647839,131.9,131.85,24.94847839]
[1744615724701,18.88117839,131.89,131.84,101.45107839]
[1744615725010,18.88117839,131.86,131.84,82.5699]
[1744615725190,18.88117839,131.85,131.82,82.5699]
[1744615726007,24.94867839,131.85,131.82,82.5699]
[1744615726709,18.88117839,131.85,131.82,82.5699]
[1744615726889,26.47397839,131.86,131.82,82.5699]
[1744615727298,18.88117839,131.89,131.84,18.88117839]
[1744615727599,44.88117839,131.89,131.84,18.88117839]
[1744615727802,18.88117839,131.88,131.83,18.88117839]
[1744615727994,18.88117839,131.88,131.84,6.0679]
[1744615728909,24.94727839,131.88,131.83,24.94937839]
[1744615729117,24.94727839,131.88,131.82,88.6386]
[1744615729118,18.88117839,131.86,131.82,88.6386]
[1744615729428,18.88117839,131.87,131.82,107.51977839]
[1744615730610,24.94777839,131.87,131.82,107.51977839]
[1744615730808,18.88117839,131.86,131.81,6.0693]
[1744615731104,24.94777839,131.87,131.82,18.88117839]